[Event "Titled Tuesday Blitz August 08 Late 2023"]
[White "Xiong, Jeffery"]
[Black "Alex_Sahakyan2006"]
[WhiteFideId "2047640"]
[WhiteElo "2967"]
[BlackElo "2720"]
[Result "1-0"]
[Round "5"]
[TimeControl "180+1"]
[Date "2023.08.08"]
[WhiteClock "0:00:10"]
[BlackClock "0:00:03"]
[Board "22"]

1. e4 {[%clk 0:03:00]}  e5 {[%clk 0:02:51]} 2. Nf3 {[%clk 0:03:00]}  Nc6 {[%clk 0:02:51]} 3. d4 {[%clk 0:03:00]}  exd4 {[%clk 0:02:51]} 4. Nxd4 {[%clk 0:03:01]}  Nf6 {[%clk 0:02:42]} 5. Nxc6 {[%clk 0:02:55]}  bxc6 {[%clk 0:02:43]} 6. Bd3 {[%clk 0:02:31]}  d5 {[%clk 0:02:43]} 7. exd5 {[%clk 0:02:32]}  cxd5 {[%clk 0:02:43]} 8. O-O {[%clk 0:02:33]}  Be7 {[%clk 0:02:44]} 9. c4 {[%clk 0:02:33]}  d4 {[%clk 0:02:42]} 10. Bg5 {[%clk 0:02:30]}  O-O {[%clk 0:02:41]} 11. Bxf6 {[%clk 0:02:28]}  Bxf6 {[%clk 0:02:42]} 12. b4 {[%clk 0:02:28]}  Bb7 {[%clk 0:02:32]} 13. Nd2 {[%clk 0:02:27]}  Re8 {[%clk 0:02:31]} 14. Nb3 {[%clk 0:02:26]}  Rb8 {[%clk 0:02:20]} 15. a3 {[%clk 0:02:17]}  Ba8 {[%clk 0:02:14]} 16. Qh5 {[%clk 0:02:11]}  g6 {[%clk 0:02:14]} 17. Qc5 {[%clk 0:02:11]}  Rb6 {[%clk 0:02:08]} 18. Rfe1 {[%clk 0:02:07]}  Rf8 {[%clk 0:02:00]} 19. Rad1 {[%clk 0:02:04]}  Qd7 {[%clk 0:01:50]} 20. Bf1 {[%clk 0:01:33]}  Qa4 {[%clk 0:01:41]} 21. Nxd4 {[%clk 0:01:27]}  Qxa3 {[%clk 0:01:28]} 22. Nb5 {[%clk 0:01:27]}  Qb2 {[%clk 0:01:27]} 23. Rb1 {[%clk 0:01:20]}  Qc2 {[%clk 0:01:20]} 24. Nxc7 {[%clk 0:01:13]}  Rc8 {[%clk 0:01:02]} 25. Rbc1 {[%clk 0:01:13]}  Qb2 {[%clk 0:00:59]} 26. Rb1 {[%clk 0:01:13]}  Qc2 {[%clk 0:00:55]} 27. Qe3 {[%clk 0:00:59]}  Rxc7 {[%clk 0:00:29]} 28. Qe8+ {[%clk 0:00:59]}  Kg7 {[%clk 0:00:29]} 29. Qxa8 {[%clk 0:01:00]}  Bd4 {[%clk 0:00:30]} 30. Kh1 {[%clk 0:00:49]}  Rf6 {[%clk 0:00:20]} 31. f3 {[%clk 0:00:36]}  Rf5 {[%clk 0:00:16]} 32. Qb8 {[%clk 0:00:25]}  Qf2 {[%clk 0:00:13]} 33. Bd3 {[%clk 0:00:24]}  Be5 {[%clk 0:00:07]} 34. Bxf5 {[%clk 0:00:19]}  Bxh2 {[%clk 0:00:06]} 35. Bh3 {[%clk 0:00:14]}  Bf4 {[%clk 0:00:05]} 36. Re4 {[%clk 0:00:14]}  Qg3 {[%clk 0:00:04]} 37. Rxf4 {[%clk 0:00:14]}  Qxf4 {[%clk 0:00:05]} 38. c5 {[%clk 0:00:12]}  h5 {[%clk 0:00:05]} 39. Qd8 {[%clk 0:00:10]}  g5 {[%clk 0:00:06]} 40. Qd6 {[%clk 0:00:10]}  Qxd6 {[%clk 0:00:05]} 41. cxd6 {[%clk 0:00:11]}  Rc6 {[%clk 0:00:05]} 42. Rd1 {[%clk 0:00:11]}  g4 {[%clk 0:00:04]} 43. fxg4 {[%clk 0:00:11]}  hxg4 {[%clk 0:00:05]} 44. d7 {[%clk 0:00:08]}  gxh3 {[%clk 0:00:06]} 45. d8=Q {[%clk 0:00:09]}  hxg2+ {[%clk 0:00:03]} 46. Kxg2 {[%clk 0:00:10]} 1-0


[Site "https://www.chess.com"]

[Event "Titled Tuesday Blitz August 08 Late 2023"]
[White "Papasimakopoulos, Alexandros"]
[Black "Sjugirov, Sanan"]
[WhiteFideId "4244125"]
[BlackFideId "4189302"]
[WhiteElo "2707"]
[BlackElo "2952"]
[Result "0-1"]
[Round "5"]
[TimeControl "180+1"]
[Date "2023.08.08"]
[WhiteClock "0:00:21"]
[BlackClock "0:01:19"]
[Board "23"]

1. d4 {[%clk 0:02:34]}  Nf6 {[%clk 0:02:59]} 2. c4 {[%clk 0:02:33]}  e6 {[%clk 0:02:59]} 3. Nc3 {[%clk 0:02:24]}  Bb4 {[%clk 0:02:59]} 4. Qc2 {[%clk 0:02:19]}  d6 {[%clk 0:02:55]} 5. a3 {[%clk 0:02:17]}  Bxc3+ {[%clk 0:02:55]} 6. Qxc3 {[%clk 0:02:18]}  Nc6 {[%clk 0:02:55]} 7. f3 {[%clk 0:02:17]}  e5 {[%clk 0:02:52]} 8. d5 {[%clk 0:02:17]}  Ne7 {[%clk 0:02:52]} 9. e4 {[%clk 0:02:17]}  Nd7 {[%clk 0:02:51]} 10. Bd3 {[%clk 0:02:15]}  a5 {[%clk 0:02:50]} 11. b3 {[%clk 0:02:12]}  Nc5 {[%clk 0:02:48]} 12. Bc2 {[%clk 0:02:12]}  f5 {[%clk 0:02:48]} 13. exf5 {[%clk 0:02:03]}  Bxf5 {[%clk 0:02:47]} 14. Ne2 {[%clk 0:02:03]}  Bxc2 {[%clk 0:02:44]} 15. Qxc2 {[%clk 0:02:04]}  a4 {[%clk 0:02:45]} 16. b4 {[%clk 0:02:02]}  Nb3 {[%clk 0:02:45]} 17. Rb1 {[%clk 0:02:03]}  O-O {[%clk 0:02:42]} 18. O-O {[%clk 0:02:02]}  Nf5 {[%clk 0:02:41]} 19. Qd3 {[%clk 0:01:59]}  Qh4 {[%clk 0:02:34]} 20. Bb2 {[%clk 0:01:55]}  Rae8 {[%clk 0:02:26]} 21. g3 {[%clk 0:01:52]}  Qh3 {[%clk 0:02:26]} 22. Rbe1 {[%clk 0:01:49]}  h5 {[%clk 0:02:18]} 23. Rf2 {[%clk 0:01:47]}  h4 {[%clk 0:02:09]} 24. Rg2 {[%clk 0:01:32]}  Nbd4 {[%clk 0:02:01]} 25. Nxd4 {[%clk 0:01:29]}  exd4 {[%clk 0:02:01]} 26. Rxe8 {[%clk 0:01:25]}  Rxe8 {[%clk 0:02:01]} 27. Bxd4 {[%clk 0:01:06]}  hxg3 {[%clk 0:01:52]} 28. Bc3 {[%clk 0:01:02]}  Re3 {[%clk 0:01:46]} 29. Qc2 {[%clk 0:00:44]}  Rxf3 {[%clk 0:01:44]} 30. Qe2 {[%clk 0:00:25]}  Rxc3 {[%clk 0:01:28]} 31. hxg3 {[%clk 0:00:25]}  Rc1+ {[%clk 0:01:21]} 32. Kf2 {[%clk 0:00:25]}  Qxg2+ {[%clk 0:01:18]} 33. Kxg2 {[%clk 0:00:24]}  Rc2 {[%clk 0:01:18]} 34. Qxc2 {[%clk 0:00:21]}  Ne3+ {[%clk 0:01:19]} 0-1


[Site "https://www.chess.com"]

[Event "Titled Tuesday Blitz August 08 Late 2023"]
[White "Nguyen, Ngoc Truong Son"]
[Black "Matinian, Nikita"]
[WhiteFideId "12401110"]
[BlackFideId "24129100"]
[WhiteElo "2942"]
[BlackElo "2700"]
[Result "1-0"]
[Round "5"]
[TimeControl "180+1"]
[Date "2023.08.08"]
[WhiteClock "0:01:42"]
[BlackClock "0:00:00"]
[Board "24"]

1. d4 {[%clk 0:03:00]}  Nf6 {[%clk 0:02:55]} 2. c4 {[%clk 0:03:00]}  g6 {[%clk 0:02:55]} 3. Nc3 {[%clk 0:03:01]}  Bg7 {[%clk 0:02:56]} 4. e4 {[%clk 0:03:01]}  d6 {[%clk 0:02:56]} 5. f4 {[%clk 0:03:02]}  O-O {[%clk 0:02:55]} 6. Nf3 {[%clk 0:03:02]}  Bg4 {[%clk 0:02:56]} 7. Be3 {[%clk 0:03:02]}  Nfd7 {[%clk 0:02:37]} 8. h3 {[%clk 0:02:59]}  Bxf3 {[%clk 0:02:37]} 9. Qxf3 {[%clk 0:03:00]}  c5 {[%clk 0:02:37]} 10. d5 {[%clk 0:03:00]}  Na6 {[%clk 0:02:19]} 11. h4 {[%clk 0:02:56]}  Qa5 {[%clk 0:02:16]} 12. Bd2 {[%clk 0:02:40]}  Nb4 {[%clk 0:02:15]} 13. Rc1 {[%clk 0:02:39]}  f5 {[%clk 0:01:37]} 14. a3 {[%clk 0:02:37]}  Na6 {[%clk 0:01:37]} 15. h5 {[%clk 0:02:35]}  Qb6 {[%clk 0:01:26]} 16. Nb5 {[%clk 0:02:31]}  Nc7 {[%clk 0:01:16]} 17. hxg6 {[%clk 0:02:29]}  Nxb5 {[%clk 0:01:09]} 18. cxb5 {[%clk 0:02:20]}  hxg6 {[%clk 0:01:08]} 19. g4 {[%clk 0:02:08]}  c4 {[%clk 0:00:41]} 20. gxf5 {[%clk 0:02:06]}  Qxb5 {[%clk 0:00:33]} 21. Qh3 {[%clk 0:02:03]}  Nf6 {[%clk 0:00:32]} 22. Bc3 {[%clk 0:02:00]}  gxf5 {[%clk 0:00:23]} 23. Qxf5 {[%clk 0:01:58]}  Qd7 {[%clk 0:00:18]} 24. Bh3 {[%clk 0:01:54]}  Qxf5 {[%clk 0:00:14]} 25. Bxf5 {[%clk 0:01:55]}  Kf7 {[%clk 0:00:14]} 26. e5 {[%clk 0:01:48]}  Nxd5 {[%clk 0:00:13]} 27. e6+ {[%clk 0:01:48]}  Kg8 {[%clk 0:00:13]} 28. Bh7+ {[%clk 0:01:48]}  Kh8 {[%clk 0:00:12]} 29. Be4+ {[%clk 0:01:43]}  Kg8 {[%clk 0:00:12]} 30. Bxd5 {[%clk 0:01:42]}  Bxc3+ {[%clk 0:00:02]} 31. Rxc3 {[%clk 0:01:42]}  Rxf4 {[%clk 0:00:00]} 32. Rg3+ {[%clk 0:01:42]} 1-0


[Site "https://www.chess.com"]

[Event "Titled Tuesday Blitz August 08 Late 2023"]
[White "Rastbod, Ali"]
[Black "Zhigalko, Sergei"]
[WhiteFideId "12567477"]
[BlackFideId "13502956"]
[WhiteElo "2691"]
[BlackElo "2887"]
[Result "0-1"]
[Round "5"]
[TimeControl "180+1"]
[Date "2023.08.08"]
[WhiteClock "0:00:00"]
[BlackClock "0:00:50"]
[Board "26"]

1. Nf3 {[%clk 0:02:29]}  d5 {[%clk 0:02:59]} 2. c4 {[%clk 0:02:29]}  d4 {[%clk 0:03:00]} 3. b4 {[%clk 0:02:29]}  Bg4 {[%clk 0:02:59]} 4. Qb3 {[%clk 0:02:28]}  Nf6 {[%clk 0:02:59]} 5. Bb2 {[%clk 0:02:28]}  Bxf3 {[%clk 0:02:59]} 6. Qxf3 {[%clk 0:02:29]}  e5 {[%clk 0:03:00]} 7. Qxb7 {[%clk 0:02:26]}  Nbd7 {[%clk 0:03:00]} 8. a3 {[%clk 0:02:26]}  a5 {[%clk 0:03:00]} 9. c5 {[%clk 0:02:19]}  Rb8 {[%clk 0:02:51]} 10. Qc6 {[%clk 0:02:15]}  axb4 {[%clk 0:02:49]} 11. axb4 {[%clk 0:02:16]}  Rxb4 {[%clk 0:02:34]} 12. Ba3 {[%clk 0:02:08]}  Rb3 {[%clk 0:01:52]} 13. e3 {[%clk 0:01:59]}  Qb8 {[%clk 0:01:50]} 14. Bc4 {[%clk 0:00:55]}  Rxb1+ {[%clk 0:01:48]} 15. Rxb1 {[%clk 0:00:52]}  Qxb1+ {[%clk 0:01:49]} 16. Ke2 {[%clk 0:00:53]}  Qb8 {[%clk 0:01:26]} 17. exd4 {[%clk 0:00:24]}  exd4 {[%clk 0:01:26]} 18. Kf3 {[%clk 0:00:09]}  Be7 {[%clk 0:01:19]} 19. Re1 {[%clk 0:00:09]}  Qd8 {[%clk 0:00:59]} 20. Bb2 {[%clk 0:00:04]}  O-O {[%clk 0:00:52]} 21. Bxd4 {[%clk 0:00:00]}  Nb8 {[%clk 0:00:50]} 0-1


[Site "https://www.chess.com"]

[Event "Titled Tuesday Blitz August 08 Late 2023"]
[White "Begmuratov, Alisher"]
[Black "Khanin, Semen"]
[WhiteFideId "14203367"]
[BlackFideId "4111990"]
[WhiteElo "2663"]
[BlackElo "2883"]
[Result "1-0"]
[Round "5"]
[TimeControl "180+1"]
[Date "2023.08.08"]
[WhiteClock "0:02:02"]
[BlackClock "0:00:51"]
[Board "27"]

1. e4 {[%clk 0:03:00]}  c5 {[%clk 0:02:57]} 2. Nf3 {[%clk 0:02:58]}  Nc6 {[%clk 0:02:57]} 3. Nc3 {[%clk 0:02:56]}  g6 {[%clk 0:02:57]} 4. d4 {[%clk 0:02:55]}  cxd4 {[%clk 0:02:58]} 5. Nxd4 {[%clk 0:02:56]}  Bg7 {[%clk 0:02:58]} 6. Be3 {[%clk 0:02:54]}  Nf6 {[%clk 0:02:58]} 7. f3 {[%clk 0:02:54]}  O-O {[%clk 0:02:57]} 8. Bc4 {[%clk 0:02:53]}  Qb6 {[%clk 0:02:54]} 9. Bb3 {[%clk 0:02:46]}  Nxe4 {[%clk 0:02:44]} 10. Nd5 {[%clk 0:02:30]}  Qa5+ {[%clk 0:02:43]} 11. c3 {[%clk 0:02:30]}  Nc5 {[%clk 0:02:20]} 12. Nxc6 {[%clk 0:02:27]}  dxc6 {[%clk 0:02:20]} 13. Nxe7+ {[%clk 0:02:28]}  Kh8 {[%clk 0:02:20]} 14. Nxc8 {[%clk 0:02:24]}  Rd8 {[%clk 0:02:12]} 15. Nd6 {[%clk 0:02:16]}  Rxd6 {[%clk 0:02:06]} 16. Qxd6 {[%clk 0:02:15]}  Nxb3 {[%clk 0:02:07]} 17. Rd1 {[%clk 0:02:14]}  Be5 {[%clk 0:01:53]} 18. Qe7 {[%clk 0:02:11]}  Bxc3+ {[%clk 0:01:12]} 19. bxc3 {[%clk 0:02:09]}  Qxc3+ {[%clk 0:01:12]} 20. Kf2 {[%clk 0:02:10]}  Qb2+ {[%clk 0:01:13]} 21. Kf1 {[%clk 0:02:07]}  Qxa2 {[%clk 0:01:07]} 22. Qf6+ {[%clk 0:02:04]}  Kg8 {[%clk 0:01:06]} 23. Bh6 {[%clk 0:02:05]}  Qa6+ {[%clk 0:00:51]} 24. Kf2 {[%clk 0:02:02]} 1-0


[Site "https://www.chess.com"]

[Event "Titled Tuesday Blitz August 08 Late 2023"]
[White "Musovic, Armin"]
[Black "Tristan, Leonardo"]
[WhiteFideId "939935"]
[BlackFideId "113816"]
[WhiteElo "2588"]
[BlackElo "2787"]
[Result "0-1"]
[Round "5"]
[TimeControl "180+1"]
[Date "2023.08.08"]
[WhiteClock "0:01:03"]
[BlackClock "0:01:03"]
[Board "37"]

1. a3 {[%clk 0:02:56]}  d5 {[%clk 0:02:58]} 2. d4 {[%clk 0:02:55]}  Nf6 {[%clk 0:02:58]} 3. Nf3 {[%clk 0:02:55]}  Bf5 {[%clk 0:02:58]} 4. c4 {[%clk 0:02:56]}  e6 {[%clk 0:02:57]} 5. Nc3 {[%clk 0:02:56]}  c6 {[%clk 0:02:46]} 6. g3 {[%clk 0:02:57]}  Nbd7 {[%clk 0:02:43]} 7. Bg2 {[%clk 0:02:57]}  Be7 {[%clk 0:02:43]} 8. O-O {[%clk 0:02:56]}  O-O {[%clk 0:02:43]} 9. Nd2 {[%clk 0:02:50]}  h6 {[%clk 0:02:32]} 10. e4 {[%clk 0:02:49]}  dxe4 {[%clk 0:02:32]} 11. Ndxe4 {[%clk 0:02:50]}  Nxe4 {[%clk 0:02:33]} 12. Nxe4 {[%clk 0:02:50]}  Nf6 {[%clk 0:02:34]} 13. Nc3 {[%clk 0:02:50]}  Qb6 {[%clk 0:02:32]} 14. b4 {[%clk 0:02:40]}  Rfd8 {[%clk 0:02:29]} 15. Be3 {[%clk 0:02:39]}  a5 {[%clk 0:01:59]} 16. c5 {[%clk 0:02:09]}  Qa6 {[%clk 0:01:56]} 17. Re1 {[%clk 0:01:59]}  axb4 {[%clk 0:01:46]} 18. axb4 {[%clk 0:02:00]}  Qc4 {[%clk 0:01:44]} 19. Qd2 {[%clk 0:01:47]}  Qxb4 {[%clk 0:01:34]} 20. h3 {[%clk 0:01:33]}  Rxa1 {[%clk 0:01:24]} 21. Rxa1 {[%clk 0:01:34]}  Bxc5 {[%clk 0:01:25]} 22. Rb1 {[%clk 0:01:20]}  Bxb1 {[%clk 0:01:23]} 23. Bxh6 {[%clk 0:01:11]}  gxh6 {[%clk 0:01:14]} 24. Qxh6 {[%clk 0:01:11]}  Qxd4 {[%clk 0:01:05]} 25. Nxb1 {[%clk 0:01:03]}  Qxf2+ {[%clk 0:01:03]} 0-1


[Site "https://www.chess.com"]

[Event "Titled Tuesday Blitz August 08 Late 2023"]
[White "Hnydiuk, Aleksander"]
[Black "Mahdavi, Reza"]
[WhiteFideId "1109057"]
[BlackFideId "12595926"]
[WhiteElo "2536"]
[BlackElo "2765"]
[Result "0-1"]
[Round "5"]
[TimeControl "180+1"]
[Date "2023.08.08"]
[WhiteClock "0:00:00"]
[BlackClock "0:00:15"]
[Board "38"]

1. d4 {[%clk 0:03:00]}  Nf6 {[%clk 0:02:59]} 2. c4 {[%clk 0:03:00]}  g6 {[%clk 0:02:59]} 3. f3 {[%clk 0:02:57]}  Bg7 {[%clk 0:03:00]} 4. e4 {[%clk 0:02:57]}  d6 {[%clk 0:03:00]} 5. Be3 {[%clk 0:02:57]}  O-O {[%clk 0:03:01]} 6. Ne2 {[%clk 0:02:55]}  c5 {[%clk 0:02:41]} 7. d5 {[%clk 0:02:54]}  e6 {[%clk 0:02:29]} 8. Nec3 {[%clk 0:02:53]}  exd5 {[%clk 0:02:27]} 9. cxd5 {[%clk 0:02:54]}  a6 {[%clk 0:02:23]} 10. a4 {[%clk 0:02:54]}  Nbd7 {[%clk 0:02:24]} 11. Be2 {[%clk 0:02:51]}  h5 {[%clk 0:02:23]} 12. O-O {[%clk 0:02:50]}  Ne5 {[%clk 0:02:23]} 13. h3 {[%clk 0:02:42]}  Re8 {[%clk 0:02:21]} 14. Nd2 {[%clk 0:02:39]}  Rb8 {[%clk 0:02:21]} 15. Qc2 {[%clk 0:02:35]}  Qc7 {[%clk 0:02:03]} 16. f4 {[%clk 0:02:18]}  Ned7 {[%clk 0:02:03]} 17. a5 {[%clk 0:02:12]}  b5 {[%clk 0:01:56]} 18. axb6 {[%clk 0:02:12]}  Nxb6 {[%clk 0:01:57]} 19. Bf2 {[%clk 0:01:57]}  Nfxd5 {[%clk 0:01:42]} 20. exd5 {[%clk 0:01:54]}  Bxc3 {[%clk 0:01:36]} 21. Qxc3 {[%clk 0:01:30]}  Rxe2 {[%clk 0:01:36]} 22. Rae1 {[%clk 0:01:19]}  Rxe1 {[%clk 0:01:35]} 23. Rxe1 {[%clk 0:01:18]}  Bf5 {[%clk 0:01:35]} 24. g4 {[%clk 0:00:55]}  hxg4 {[%clk 0:01:28]} 25. hxg4 {[%clk 0:00:55]}  Nxd5 {[%clk 0:01:29]} 26. Qf3 {[%clk 0:00:49]}  Ne7 {[%clk 0:01:06]} 27. gxf5 {[%clk 0:00:48]}  Nxf5 {[%clk 0:01:07]} 28. Ne4 {[%clk 0:00:47]}  Qd8 {[%clk 0:00:56]} 29. Qc3 {[%clk 0:00:45]}  d5 {[%clk 0:00:53]} 30. Nf6+ {[%clk 0:00:45]}  Kg7 {[%clk 0:00:45]} 31. Nxd5+ {[%clk 0:00:40]}  f6 {[%clk 0:00:45]} 32. Rd1 {[%clk 0:00:23]}  Nh6 {[%clk 0:00:35]} 33. Bxc5 {[%clk 0:00:17]}  Ng8 {[%clk 0:00:31]} 34. Be7 {[%clk 0:00:16]}  Qd7 {[%clk 0:00:27]} 35. Bxf6+ {[%clk 0:00:14]}  Kf7 {[%clk 0:00:27]} 36. Bh4 {[%clk 0:00:09]}  Qg4+ {[%clk 0:00:27]} 37. Bg3 {[%clk 0:00:05]}  Qxd1+ {[%clk 0:00:27]} 38. Kf2 {[%clk 0:00:03]}  Rxb2+ {[%clk 0:00:14]} 39. Qxb2 {[%clk 0:00:00]}  Qxd5 {[%clk 0:00:15]} 0-1


[Site "https://www.chess.com"]

[Event "Titled Tuesday Blitz August 08 Late 2023"]
[White "Kuzmicz, Krystian"]
[Black "chess123456s"]
[WhiteFideId "1119125"]
[WhiteElo "2756"]
[BlackElo "2523"]
[Result "1-0"]
[Round "5"]
[TimeControl "180+1"]
[Date "2023.08.08"]
[WhiteClock "0:02:12"]
[BlackClock "0:01:54"]
[Board "40"]

1. e4 {[%clk 0:02:58]}  e6 {[%clk 0:02:51]} 2. b3 {[%clk 0:02:57]}  d5 {[%clk 0:02:50]} 3. Bb2 {[%clk 0:02:56]}  dxe4 {[%clk 0:02:49]} 4. Nc3 {[%clk 0:02:56]}  Nf6 {[%clk 0:02:48]} 5. Qe2 {[%clk 0:02:55]}  Be7 {[%clk 0:02:44]} 6. Nxe4 {[%clk 0:02:52]}  Nxe4 {[%clk 0:02:40]} 7. Qxe4 {[%clk 0:02:52]}  Bf6 {[%clk 0:02:39]} 8. O-O-O {[%clk 0:02:51]}  Bxb2+ {[%clk 0:02:39]} 9. Kxb2 {[%clk 0:02:51]}  Qf6+ {[%clk 0:02:39]} 10. d4 {[%clk 0:02:51]}  Qxf2 {[%clk 0:02:39]} 11. Nf3 {[%clk 0:02:46]}  Bd7 {[%clk 0:02:18]} 12. Rd2 {[%clk 0:02:40]}  f5 {[%clk 0:02:06]} 13. Qd3 {[%clk 0:02:23]}  Qxd2 {[%clk 0:01:58]} 14. Qxd2 {[%clk 0:02:22]}  O-O {[%clk 0:01:59]} 15. Ne5 {[%clk 0:02:21]}  Bc6 {[%clk 0:01:56]} 16. Bc4 {[%clk 0:02:19]}  Bd5 {[%clk 0:01:55]} 17. Bxd5 {[%clk 0:02:16]}  exd5 {[%clk 0:01:56]} 18. Qb4 {[%clk 0:02:15]}  Nc6 {[%clk 0:01:55]} 19. Nxc6 {[%clk 0:02:14]}  bxc6 {[%clk 0:01:56]} 20. Re1 {[%clk 0:02:14]}  Rae8 {[%clk 0:01:55]} 21. Rxe8 {[%clk 0:02:13]}  Rxe8 {[%clk 0:01:54]} 22. Qb7 {[%clk 0:02:12]} 1-0


[Site "https://www.chess.com"]

[Event "Titled Tuesday Blitz August 08 Late 2023"]
[White "Nazari, Arad"]
[Black "Kubatko, Ivan"]
[WhiteFideId "12577324"]
[BlackFideId "24111473"]
[WhiteElo "2754"]
[BlackElo "2464"]
[Result "1-0"]
[Round "5"]
[TimeControl "180+1"]
[Date "2023.08.08"]
[WhiteClock "0:01:03"]
[BlackClock "0:00:46"]
[Board "42"]

1. e4 {[%clk 0:03:00]}  d5 {[%clk 0:02:59]} 2. exd5 {[%clk 0:03:01]}  Qxd5 {[%clk 0:03:00]} 3. Nc3 {[%clk 0:03:01]}  Qa5 {[%clk 0:03:00]} 4. d4 {[%clk 0:03:02]}  Nf6 {[%clk 0:03:01]} 5. Bc4 {[%clk 0:03:02]}  Bg4 {[%clk 0:02:58]} 6. f3 {[%clk 0:03:02]}  Be6 {[%clk 0:02:58]} 7. Bxe6 {[%clk 0:03:00]}  fxe6 {[%clk 0:02:59]} 8. Ne2 {[%clk 0:02:51]}  Nc6 {[%clk 0:02:57]} 9. O-O {[%clk 0:02:49]}  O-O-O {[%clk 0:02:57]} 10. Be3 {[%clk 0:02:50]}  e5 {[%clk 0:02:56]} 11. d5 {[%clk 0:02:41]}  Nxd5 {[%clk 0:02:54]} 12. Nxd5 {[%clk 0:02:41]}  Qxd5 {[%clk 0:02:33]} 13. Qxd5 {[%clk 0:02:40]}  Rxd5 {[%clk 0:02:34]} 14. Nc3 {[%clk 0:02:41]}  Rd8 {[%clk 0:02:14]} 15. Rad1 {[%clk 0:02:39]}  e6 {[%clk 0:02:12]} 16. Rxd8+ {[%clk 0:02:38]}  Kxd8 {[%clk 0:02:13]} 17. Rd1+ {[%clk 0:02:39]}  Kc8 {[%clk 0:01:49]} 18. Ne4 {[%clk 0:02:30]}  Be7 {[%clk 0:01:41]} 19. c3 {[%clk 0:02:28]}  Rd8 {[%clk 0:01:40]} 20. Re1 {[%clk 0:02:27]}  a5 {[%clk 0:01:31]} 21. Kf2 {[%clk 0:01:58]}  b5 {[%clk 0:01:29]} 22. Bc5 {[%clk 0:01:47]}  Bf6 {[%clk 0:01:09]} 23. Ke2 {[%clk 0:01:43]}  Kb7 {[%clk 0:01:07]} 24. Rd1 {[%clk 0:01:41]}  Rxd1 {[%clk 0:01:06]} 25. Kxd1 {[%clk 0:01:42]}  Kc8 {[%clk 0:00:57]} 26. Be3 {[%clk 0:01:21]}  Be7 {[%clk 0:00:55]} 27. Bc5 {[%clk 0:01:19]}  Bf6 {[%clk 0:00:54]} 28. Kc2 {[%clk 0:01:20]}  Kd7 {[%clk 0:00:53]} 29. b3 {[%clk 0:01:18]}  Be7 {[%clk 0:00:51]} 30. a4 {[%clk 0:01:18]}  bxa4 {[%clk 0:00:48]} 31. bxa4 {[%clk 0:01:18]}  Bxc5 {[%clk 0:00:46]} 32. Nxc5+ {[%clk 0:01:19]}  Kd6 {[%clk 0:00:47]} 33. Ne4+ {[%clk 0:01:05]}  Kd5 {[%clk 0:00:47]} 34. Kd3 {[%clk 0:01:04]}  h6 {[%clk 0:00:46]} 35. c4# {[%clk 0:01:03]} 1-0


[Site "https://www.chess.com"]

[Event "Titled Tuesday Blitz August 08 Late 2023"]
[White "Rego, Pedro Filipe"]
[Black "Urazayev, Arystanbek"]
[WhiteFideId "1904310"]
[BlackFideId "13709810"]
[WhiteElo "2410"]
[BlackElo "2752"]
[Result "0-1"]
[Round "5"]
[TimeControl "180+1"]
[Date "2023.08.08"]
[WhiteClock "0:00:08"]
[BlackClock "0:00:40"]
[Board "44"]

1. d4 {[%clk 0:03:00]}  Nf6 {[%clk 0:02:56]} 2. Bf4 {[%clk 0:02:58]}  g6 {[%clk 0:02:55]} 3. Nc3 {[%clk 0:02:58]}  d5 {[%clk 0:02:54]} 4. e3 {[%clk 0:02:57]}  Bg7 {[%clk 0:02:54]} 5. h4 {[%clk 0:02:58]}  h5 {[%clk 0:02:55]} 6. Be2 {[%clk 0:02:57]}  c5 {[%clk 0:02:53]} 7. Nb5 {[%clk 0:02:56]}  Na6 {[%clk 0:02:49]} 8. c3 {[%clk 0:02:55]}  O-O {[%clk 0:02:47]} 9. Nf3 {[%clk 0:02:55]}  Bd7 {[%clk 0:02:37]} 10. a4 {[%clk 0:02:53]}  c4 {[%clk 0:02:30]} 11. Ne5 {[%clk 0:02:44]}  Bf5 {[%clk 0:02:16]} 12. f3 {[%clk 0:02:36]}  Nb8 {[%clk 0:02:04]} 13. g4 {[%clk 0:02:11]}  hxg4 {[%clk 0:02:04]} 14. fxg4 {[%clk 0:02:12]}  Be4 {[%clk 0:02:05]} 15. Rh2 {[%clk 0:02:12]}  Nc6 {[%clk 0:02:05]} 16. h5 {[%clk 0:02:08]}  gxh5 {[%clk 0:02:06]} 17. gxh5 {[%clk 0:02:04]}  Kh7 {[%clk 0:02:01]} 18. h6 {[%clk 0:02:01]}  Bh8 {[%clk 0:02:01]} 19. Bf3 {[%clk 0:01:48]}  Rg8 {[%clk 0:01:49]} 20. Kd2 {[%clk 0:01:40]}  Bxf3 {[%clk 0:01:48]} 21. Qxf3 {[%clk 0:01:38]}  Ne4+ {[%clk 0:01:49]} 22. Kc2 {[%clk 0:01:37]}  f6 {[%clk 0:01:25]} 23. Nxc4 {[%clk 0:01:30]}  Qd7 {[%clk 0:01:14]} 24. Nd2 {[%clk 0:01:20]}  Nxd2 {[%clk 0:01:08]} 25. Kxd2 {[%clk 0:01:21]}  e5 {[%clk 0:00:59]} 26. Bg3 {[%clk 0:00:41]}  Na5 {[%clk 0:00:57]} 27. Kc2 {[%clk 0:00:34]}  Nc4 {[%clk 0:00:57]} 28. Bh4 {[%clk 0:00:20]}  a6 {[%clk 0:00:43]} 29. Nc7 {[%clk 0:00:11]}  Qxc7 {[%clk 0:00:40]} 30. Qf5+ {[%clk 0:00:11]}  Rg6 {[%clk 0:00:40]} 31. Rg2 {[%clk 0:00:08]}  Nxe3+ {[%clk 0:00:40]} 0-1


[Site "https://www.chess.com"]

[Event "Titled Tuesday Blitz August 08 Late 2023"]
[White "Pert, Richard G"]
[Black "Elsa167"]
[WhiteFideId "404748"]
[WhiteElo "2589"]
[BlackElo "2894"]
[Result "0-1"]
[Round "5"]
[TimeControl "180+1"]
[Date "2023.08.08"]
[WhiteClock "0:00:30"]
[BlackClock "0:01:31"]
[Board "47"]

1. d4 {[%clk 0:02:51]}  Nf6 {[%clk 0:02:59]} 2. Bg5 {[%clk 0:02:48]}  c6 {[%clk 0:02:58]} 3. Bxf6 {[%clk 0:02:46]}  gxf6 {[%clk 0:02:59]} 4. Nc3 {[%clk 0:02:43]}  f5 {[%clk 0:02:59]} 5. e3 {[%clk 0:02:43]}  d5 {[%clk 0:02:55]} 6. Bd3 {[%clk 0:02:40]}  h5 {[%clk 0:02:54]} 7. Qf3 {[%clk 0:02:36]}  e6 {[%clk 0:02:51]} 8. Nh3 {[%clk 0:02:31]}  Nd7 {[%clk 0:02:49]} 9. O-O-O {[%clk 0:02:26]}  Nf6 {[%clk 0:02:48]} 10. Ne2 {[%clk 0:02:20]}  h4 {[%clk 0:02:46]} 11. c4 {[%clk 0:02:15]}  Ne4 {[%clk 0:02:41]} 12. Nef4 {[%clk 0:02:08]}  Qa5 {[%clk 0:02:39]} 13. Kb1 {[%clk 0:01:58]}  Nd2+ {[%clk 0:02:37]} 14. Rxd2 {[%clk 0:01:58]}  Qxd2 {[%clk 0:02:38]} 15. Rd1 {[%clk 0:01:57]}  Qa5 {[%clk 0:02:38]} 16. Ng5 {[%clk 0:01:53]}  Be7 {[%clk 0:02:36]} 17. Nfh3 {[%clk 0:01:14]}  Qd8 {[%clk 0:02:32]} 18. Qf4 {[%clk 0:01:09]}  f6 {[%clk 0:02:02]} 19. Nxe6 {[%clk 0:01:09]}  Bxe6 {[%clk 0:02:02]} 20. Bxf5 {[%clk 0:01:09]}  Qd7 {[%clk 0:01:52]} 21. Bg6+ {[%clk 0:01:09]}  Kd8 {[%clk 0:01:44]} 22. cxd5 {[%clk 0:01:06]}  Qxd5 {[%clk 0:01:45]} 23. e4 {[%clk 0:01:01]}  Qxa2+ {[%clk 0:01:45]} 24. Kc1 {[%clk 0:00:59]}  Qa1+ {[%clk 0:01:43]} 25. Kd2 {[%clk 0:00:58]}  Bb4+ {[%clk 0:01:43]} 26. Ke2 {[%clk 0:00:57]}  Bc4+ {[%clk 0:01:31]} 27. Ke3 {[%clk 0:00:49]}  Qxd1 {[%clk 0:01:31]} 28. Qxf6+ {[%clk 0:00:49]}  Kc7 {[%clk 0:01:32]} 29. Qe5+ {[%clk 0:00:40]}  Kb6 {[%clk 0:01:30]} 30. Nf4 {[%clk 0:00:30]}  Bd2# {[%clk 0:01:31]} 0-1


[Site "https://www.chess.com"]